fUSD/lending_fUSD_20240329
["ID","MTS","AMOUNT","RATE_DAILY","PERIOD"]
[320903320,1711681832291,-435.07979,0.0002834,2]
[320903321,1711681832300,-435.0798,0.0003084,2]
[320903322,1711681832309,-435.0798,0.0003334,2]
[320903323,1711681832319,-320.81,0.00037247,2]
[320903324,1711681832328,-2117.12,0.0003909,2]
[320903325,1711681832337,-848.57,0.00039103,2]
[320903326,1711681832346,-1000.0,0.00039116,2]
[320903327,1711681832354,-179.21,0.00039116,120]
[320903328,1711681832363,-153.58,0.00039128,2]
[320903329,1711681832372,-200.0,0.00039144,2]
[320903330,1711681832383,-499.99,0.00039144,2]
[320903331,1711681832394,-365.12,0.00039159,15]
[320903332,1711681832403,-171.98992028,0.00039279,2]
[320903333,1711681832414,-318.0,0.00039371,3]
[320903334,1711681832427,-5750.3611,0.00039372,2]
[320903335,1711681832438,-169.71,0.00039379,2]
[320903336,1711681832447,-179.34,0.00039425,2]
[320903337,1711681832457,-320.81,0.00039511,2]
[320903338,1711681832467,-163.31,0.00039569,2]
[320903339,1711681832476,-176.27,0.00039671,2]
[320903340,1711681832485,-163.31,0.00039798,2]
[320903341,1711681832495,-460.821369,0.0004,15]
[320903342,1711681832504,-234.01443,0.0004,6]
[320903343,1711681832516,-163.31,0.00040027,2]
[320903344,1711681832527,-165.68128814,0.00040092,3]
[320903345,1711681832536,-163.31,0.00040256,2]
[320903346,1711681832547,-160.6,0.00040308,2]
[320903347,1711681832556,-160.6,0.00040324,2]
[320903348,1711681832566,-334.57,0.0004033,2]
[320903349,1711681832576,-160.6,0.00040339,2]
[320903350,1711681832586,-411.25,0.00040353,2]
[320903351,1711681832595,-160.6,0.00040355,2]
[320903352,1711681832605,-160.6,0.0004037,2]
[320903353,1711681832614,-160.6,0.00040386,2]
[320903354,1711681832627,-3251.57972625,0.00040395,2]
[320903355,1711681832638,-1250.92833063,0.000404,14]
[320903356,1711681832648,-129533.23269149,0.000404,30]
[320903357,1711681832658,-253.04951198,0.000404,9]
[320903358,1711681832670,-160.6,0.00040401,2]
[320903359,1711681832680,-160.6,0.00040417,2]
[320903360,1711681832689,-160.6,0.00040432,2]
[320903363,1711681832699,-160.6,0.00040448,2]
[320903365,1711681832709,-160.6,0.00040464,2]
[320903367,1711681832720,-160.6,0.00040479,2]
[320903369,1711681832729,-163.31,0.00040485,2]
[320903371,1711681832738,-813.48,0.00040493,2]
[320903373,1711681832747,-160.6,0.00040495,2]
[320903375,1711681832756,-209.28652948,0.00040496,2]
[320903377,1711681832766,-2098.13237219,0.00040496,2]
[320903379,1711681832776,-905.5750007,0.00040499,4]
[320903381,1711681832786,-442.79907125,0.00040499,31]
[320903383,1711681832796,-108312.28934864,0.000405,30]
[320903386,1711681832822,-3395.15,0.000405,30]
[320903390,1711681832844,-792.5901174,0.000405,30]
[320903392,1711681832861,-141312.64792662,0.000405,30]
[320903395,1711681832873,-2327.04440768,0.000405,30]
[320903396,1711681832895,-1712.1632,0.000405,30]
[320903397,1711681832920,-316.53648054,0.000404,2]
[320903398,1711681832929,-241199.07126617,0.000405,30]
[320903399,1711681832956,-955.00000001,0.000405,30]
[320903400,1711681832968,-3615.17313625,0.000405,30]
[320903401,1711681832986,-628.78466563,0.000405,30]
[320903409,1711681840283,-165.68128814,0.00040092,3]
[320903410,1711681840294,-2837.32402686,0.000405,30]
[320903421,1711681843552,-1398.7549148,0.00040496,2]
[320903422,1711681843561,-5032.14006928,0.000405,30]
[320903423,1711681843575,-1620.87313189,0.000405,30]
[320903424,1711681843589,-1912.01650934,0.000405,30]
[320903425,1711681843709,-4285.74585413,0.000405,30]
[320903430,1711681843978,-3709.67335732,0.000405,30]
[320903446,1711681848923,547.16376759,0.0002334,2]
[320903448,1711682074377,2600.0,0.0002,2]
[320903473,1711683031809,-400.0,0.00030899,2]
[320903474,1711683031821,-555.0,0.00030899,2]
[320903475,1711683031831,-208.0,0.000309,2]
[320903476,1711683031840,-389.65,0.000369,2]
[320903477,1711683031850,-1720.20643934,0.00038616,2]
[320903478,1711683031864,-961.24149052,0.00038616,2]
[320903479,1711683031889,-325.47387014,0.00038616,2]
[320903480,1711683031899,-168.38,0.00038649,2]
[320903481,1711683031908,-670.32026145,0.00038715,2]
[320903482,1711683031936,-860.24973855,0.00038715,2]
[320903483,1711683031946,-250.0,0.00038716,2]
[320903484,1711683031956,-299.51,0.00038726,15]
[320903485,1711683031965,-250.0,0.00038726,2]
[320903486,1711683031974,-153.58,0.00038734,2]
[320903487,1711683031983,-94.73810879,0.00038738,112]
[320903516,1711683037434,-155.26189121,0.00038738,112]
[320903518,1711683037445,-3181.15275953,0.00038741,2]
[320903524,1711683037494,-5087.9448896,0.00038741,2]
[320903526,1711683037508,-5017.68,0.00038741,2]
[320903527,1711683037522,-7761.27,0.00038741,2]
[320903528,1711683037536,-2841.95235087,0.00038741,2]
[320903529,1711683037548,-500.0,0.00038753,2]
[320903530,1711683037560,-200.0,0.00038817,2]
[320903531,1711683037571,-243.54,0.0003891,2]
[320903532,1711683037583,-169.32,0.00038998,2]
[320903533,1711683037594,-1000.0,0.00039022,2]
[320903534,1711683037605,-499.99,0.00039022,2]
[320903535,1711683037616,-159.74,0.00039072,2]
[320903536,1711683037641,-193.0,0.00039088,120]
[320903537,1711683037655,-1402.68,0.00039148,2]
[320903538,1711683037667,-389.65,0.00039164,2]
[320903539,1711683037679,-154.94,0.00039177,2]
[320903540,1711683037692,-159.74,0.00039242,2]
[320903541,1711683037706,-170.18,0.00039324,2]
[320903542,1711683037717,-159.74,0.00039411,2]
[320903543,1711683037729,-159.74,0.00039581,2]
[320903544,1711683037741,-226.38,0.00039685,2]
[320903545,1711683037753,-159.74,0.00039751,2]
[320903546,1711683037765,-159.74,0.0003992,2]
[320903547,1711683037777,-2131.44269553,0.0003999,2]
[320903548,1711683037790,-291.56757059,0.0003999,2]
[320903550,1711683037801,-316.76957528,0.0003999,2]
[320903552,1711683037810,-14348.60562162,0.0003999,2]
[320903553,1711683037821,-168.55,0.0003999,2]
[320903554,1711683037831,-100.63470647,0.0004,6]
[320903556,1711683037849,-133.37972353,0.0004,6]
[320903557,1711683037858,-95432.12711806,0.0004,2]
[320903558,1711683037891,-441602.62458669,0.0004,2]
[320903559,1711683037900,-159.74,0.0004009,2]
[320903560,1711683037910,-180.5565254,0.0004009,2]
[320903562,1711683037919,-165.68128815,0.00040092,3]
[320903563,1711683038308,-3383.89137297,0.000401,2]
[320903564,1711683038330,-15557.1484,0.000401,2]
[320903565,1711683038347,-2500.0,0.000401,2]
[320903566,1711683038357,-6857.6186,0.000401,2]
[320903567,1711683038366,-800.0,0.00040171,15]
[320903568,1711683038375,-200.0,0.00040171,20]
[320903569,1711683038384,-200.0,0.00040171,20]
[320903570,1711683038393,-200.0,0.00040171,20]
[320903571,1711683038402,-200.0,0.00040171,20]
[320903572,1711683038411,-200.0,0.00040171,20]
[320903573,1711683038420,-200.0,0.00040171,20]
[320903574,1711683038429,-200.0,0.00040171,20]
[320903575,1711683038438,-200.0,0.00040171,20]
[320903576,1711683038447,-200.0,0.00040171,20]
[320903577,1711683038458,-200.0,0.00040171,20]
[320903578,1711683038468,-200.0,0.00040171,20]
[320903579,1711683038477,-200.0,0.00040171,20]
[320903580,1711683038489,-200.0,0.00040172,20]
[320903581,1711683038498,-200.0,0.00040172,20]
[320903582,1711683038507,-200.0,0.00040172,20]
[320903583,1711683038516,-200.0,0.00040172,20]
[320903584,1711683038525,-200.0,0.00040172,20]
[320903585,1711683038535,-200.0,0.00040172,20]
[320903586,1711683038544,-200.0,0.00040172,20]
[320903587,1711683038553,-200.0,0.00040172,20]
[320903588,1711683038563,-200.0,0.00040172,20]
[320903589,1711683038572,-200.0,0.00040172,20]
[320903590,1711683038583,-200.0,0.00040172,20]
[320903591,1711683038592,-200.0,0.00040172,20]
[320903592,1711683038602,-200.0,0.00040172,20]
[320903593,1711683038611,-200.0,0.00040172,15]
[320903594,1711683038621,-800.0,0.00040172,15]
[320903595,1711683038632,-800.0,0.00040172,15]
[320903596,1711683038642,-203.911178,0.00040172,15]
[320903597,1711683038651,-200.0,0.00040172,20]
[320903598,1711683038662,-200.0,0.00040172,20]
[320903599,1711683038672,-200.0,0.00040172,20]
[320903600,1711683038683,-200.0,0.00040172,20]
[320903601,1711683038695,-200.0,0.00040172,20]
[320903602,1711683038705,-200.0,0.00040172,20]
[320903603,1711683038714,-200.0,0.00040172,20]
[320903604,1711683038723,-200.0,0.00040172,20]
[320903605,1711683038733,-200.0,0.00040172,20]
[320903606,1711683038743,-200.0,0.00040172,20]
[320903607,1711683038752,-200.0,0.00040172,20]
[320903608,1711683038762,-200.0,0.00040172,20]
[320903609,1711683038774,-200.0,0.00040172,20]
[320903610,1711683038785,-200.0,0.00040172,20]
[320903611,1711683038797,-200.0,0.00040172,20]
[320903612,1711683038806,-200.0,0.00040172,20]
[320903613,1711683038815,-200.0,0.00040172,20]
[320903614,1711683038825,-200.0,0.00040172,20]
[320903615,1711683038835,-200.0,0.00040172,20]
[320903616,1711683038844,-200.0,0.00040172,20]
[320903617,1711683038854,-200.0,0.00040172,20]
[320903618,1711683038863,-200.0,0.00040172,20]
[320903619,1711683038873,-200.0,0.00040172,20]
[320903620,1711683038882,-200.0,0.00040172,20]
[320903621,1711683038892,-200.0,0.00040172,20]
[320903622,1711683038901,-200.0,0.00040172,20]
[320903623,1711683038911,-200.0,0.00040172,20]
[320903624,1711683038920,-200.0,0.00040172,20]
[320903625,1711683038930,-200.0,0.00040172,20]
[320903626,1711683038939,-200.0,0.00040172,20]
[320903627,1711683038948,-500.0,0.00040172,20]
[320903628,1711683038961,-200.0,0.00040172,20]
[320903629,1711683038971,-500.0,0.00040199,31]
[320903630,1711683038981,-177.6,0.00040199,31]
[320903631,1711683038990,-360030.8771,0.000402,2]
[320903632,1711683038999,-208.8752,0.000402,2]
[320903633,1711683039007,-432.3772,0.000402,2]
[320903634,1711683039017,-159.74,0.0004026,2]
[320903635,1711683039026,-735.4277,0.00040279,2]
[320903636,1711683039035,-1000.0,0.00040279,2]
[320903637,1711683039044,-3447.0402,0.000403,2]
[320903638,1711683039053,-500.0,0.000403,2]
[320903639,1711683039063,-424.0721,0.000403,2]
[320903640,1711683039072,-1032.3098,0.000403,2]
[320903641,1711683039081,-1000.0,0.000403,2]
[320903642,1711683039090,-492.9934,0.000403,2]
[320903643,1711683039099,-5378.8781,0.000403,2]
[320903644,1711683039109,-100000.0,0.000403,2]
[320903645,1711683039118,-24363.816,0.00040379,2]
[320903646,1711683039127,-1986.41,0.00040398,2]
[320903647,1711683039137,-2815.83242751,0.00040399,4]
[320903648,1711683039146,-245000.0,0.000404,2]
[320903649,1711683039155,-1299.56776653,0.000404,14]
[320903650,1711683039164,-159.74,0.00040429,2]
[320903651,1711683039173,-379.99,0.00040443,2]
[320903653,1711683039182,-291.5675704,0.00040454,2]
[320903654,1711683039191,-181.0,0.0004047,15]
[320903655,1711683039201,-295.0,0.0004047,15]
[320903656,1711683039211,-181.0,0.0004048,15]
[320903657,1711683039220,-295.0,0.0004048,15]
[320903658,1711683039229,-181.0,0.0004049,15]
[320903659,1711683039239,-295.0,0.0004049,15]
[320903660,1711683039248,-932.50327653,0.00040496,2]
[320903661,1711683039257,-200.0,0.00040498,2]
[320903662,1711683039266,-155.5655839,0.00040499,4]
[320903663,1711683039276,-3293.85323515,0.00040499,2]
[320903664,1711683039285,-24891.21362612,0.00040499,2]
[320903665,1711683039295,-154.0,0.000405,5]
[320903668,1711683039304,-71330.09983401,0.000405,30]
[320903671,1711683039333,-2000.29099791,0.000405,30]
[320903672,1711683039349,-512.307232,0.000405,30]
[320903673,1711683039514,-309937.30755617,0.000405,30]
[320903674,1711683039541,-2353.57195467,0.000405,30]
[320903675,1711683041961,-783.25753,0.000405,30]
[320903700,1711683042401,-89244.55007299,0.000405,30]
[320903707,1711683042462,-1028.88586969,0.000405,30]
[320903712,1711683042579,-0.23853277,0.000405,30]
[320903713,1711683042592,-28311.38742775,0.000405,30]
[320903714,1711683042769,-35247.10239876,0.000405,30]
[320903715,1711683043997,-35360.55503729,0.000405,30]
[320903927,1711683045832,-317.46885953,0.00040498,2]
[320904691,1711683394363,-415.13,0.00037723,2]
[320904692,1711683394392,-196.09,0.00038356,2]
[320904693,1711683394422,-250.0,0.00039086,2]
[320904694,1711683394452,-159.05,0.00039156,2]
[320904695,1711683394481,-3487.99620488,0.00039189,4]
[320904696,1711683394513,-1425.3,0.0003919,2]
[320904697,1711683394543,-250.0,0.00039255,112]
[320904698,1711683394571,-250.0,0.00039322,2]
[320904699,1711683394599,-343.56,0.00039322,15]
[320904700,1711683394634,-150.0,0.00039379,4]
[320904701,1711683394662,-14658.36,0.0003938,2]
[320904702,1711683394691,-1342.38,0.00039426,2]
[320904703,1711683394718,-200.0,0.00039526,2]
[320904704,1711683394747,-581.15993991,0.00039689,4]
[320904705,1711683394776,-229.15,0.00039705,2]
[320904706,1711683394804,-168.02168866,0.000398,9]
[320904707,1711683394833,-159.74,0.00039822,2]
[320904708,1711683394860,-170.17,0.0003983,2]
[320904709,1711683408664,498.19,0.00039639,2]
[320904710,1711683430720,-3104.32868715,0.00039899,4]
[320904711,1711683430748,-460.522,0.000399,2]
[320904712,1711683430775,-100000.0,0.000399,2]
[320904713,1711683430802,-1000.0,0.000399,2]
[320904714,1711683430831,-500.0,0.000399,2]
[320904715,1711683430858,-3682.8693,0.000399,2]
[320904716,1711683430884,-812.1293,0.000399,2]
[320904717,1711683430914,-245000.0,0.000399,2]
[320904718,1711683430944,-262.41081336,0.000399,2]
[320904719,1711683430970,-2500.0,0.000399,2]
[320904720,1711683438476,2201.6933,0.000398,2]
[320904721,1711683492410,200.0,0.00039821,2]
[320904722,1711683503967,1000.0,0.00039821,2]
[320904723,1711683512633,711.28,0.00039779,2]
[320904724,1711683570159,1000.0,0.000398,2]
[320904725,1711683600942,44916.10083208,0.000398,2]
[320904726,1711684010110,-394.37,0.00037673,2]
[320904727,1711684010131,-153.58,0.00039409,2]
[320904728,1711684010154,-250.0,0.0003945,112]
[320904729,1711684010174,-949.86,0.00039498,2]
[320904730,1711684010195,-322.08,0.0003958,15]
[320904731,1711684010216,-229.15,0.00039697,2]
[320904732,1711684010237,-467.61170031,0.000397,2]
[320904752,1711684231688,-259.1,0.00037598,2]
[320904779,1711684237837,-115.55,0.00037598,2]
[320904780,1711684237847,-200.0,0.00039512,2]
[320904781,1711684237856,-163.6978216,0.00039671,2]
[320904782,1711684237866,-2224.24904601,0.00039771,2]
[320904783,1711684237877,-990.94862618,0.00039771,2]
[320904789,1711684239672,-8274.45477365,0.00039771,2]
[320904790,1711684239684,-1424.0926136,0.00039771,2]
[320904791,1711684239694,-3015.23045283,0.00039771,2]
[320904792,1711684239703,-4507.8957283,0.000398,2]
[320904793,1711684239715,-8943.78386462,0.000398,2]
[320904794,1711684239727,-9077.54866152,0.000398,2]
[320904795,1711684239739,-8943.84023489,0.000398,2]
[320904796,1711684239844,-3013.61500003,0.000398,2]
[320904797,1711684239864,-2464.36974086,0.000398,2]
[320904798,1711684239876,-715.7106633,0.000398,2]
[320904805,1711684240179,-112399.6919744,0.000398,2]
[320904806,1711684240188,-374.65,0.00039862,2]
[320904807,1711684240197,-159.74,0.00039871,2]
[320904808,1711684240206,-499.99,0.000399,2]
[320904809,1711684240217,-459.14,0.000399,15]
[320904810,1711684240226,-2500.0,0.000399,2]
[320904811,1711684240235,-90000.0,0.0004,3]
[320904812,1711684240244,-205.829001,0.00040175,15]
[320904813,1711684240253,-800.0,0.00040175,15]
[320904814,1711684240267,-500.0,0.00040175,20]
[320904815,1711684240276,-200.0,0.00040175,20]
[320904816,1711684240285,-150.99,0.00040175,2]
[320904817,1711684240295,-150.0,0.00040249,2]
[320904818,1711684240303,-256.1177,0.00040395,2]
[320904819,1711684240312,-384.1,0.000404,2]
[320904820,1711684240321,-314.50533308,0.000404,2]
[320904821,1711684240330,-180.5565254,0.00040492,2]
[320904822,1711684240338,-302.33178247,0.00040494,6]
[320904823,1711684240347,-515.84589784,0.00040498,2]
[320904824,1711684240356,-806.70024607,0.00040499,2]
[320904825,1711684240365,-174.83255505,0.00040499,4]
[320904826,1711684240374,-400.0,0.00040499,2]
[320904827,1711684240383,-1008.21336429,0.00040499,2]
[320904828,1711684240392,-155.81018753,0.00040499,4]
[320904829,1711684240402,-155.37696233,0.00040499,4]
[320904830,1711684240412,-302936.21371656,0.000405,30]
[320904831,1711684240421,-1745.27684839,0.000405,2]
[320904832,1711684240430,-178.42397989,0.000405,30]
[320904833,1711684240439,-1137.48049392,0.000405,4]
[320904834,1711684240449,-1469.61781468,0.000405,4]
[320904835,1711684240458,-410.19532131,0.000405,30]
[320904836,1711684240467,-311.64011016,0.000405,4]
[320904837,1711684240476,-488.0,0.000405,27]
[320904838,1711684240485,-56927.4432941,0.00040502,2]
[320904839,1711684240494,-2523.6468351,0.00040502,2]
[320904840,1711684240503,-834.7162148,0.00040502,2]
[320904841,1711684240515,-8634.6131671,0.00040502,2]
[320904842,1711684240524,-160.6,0.0004051,2]
[320904843,1711684240532,-3875.3645541,0.0004053,2]
[320904844,1711684240541,-45814.8381348,0.0004053,2]
[320904845,1711684240550,-213.17723806,0.00040555,2]
[320904846,1711684240559,-11930.9566925,0.00040558,2]
[320904847,1711684240567,-15826.3402208,0.00040558,2]
[320904848,1711684240576,-958.66171246,0.00040594,2]
[320904849,1711684240585,-173.42,0.00040642,2]
[320904850,1711684240594,-4032.16604701,0.00040828,2]
[320904851,1711684240603,-286.39719897,0.00040828,60]
[320904852,1711684240612,-155.43368945,0.00040828,30]
[320904853,1711684240621,-188.33409275,0.00040828,14]
[320904854,1711684240630,-1500.0,0.00040828,30]
[320904855,1711684240638,-367.13359758,0.00040828,30]
[320904856,1711684240647,-500.0,0.00040828,10]
[320904857,1711684240656,-1115.26351913,0.00040828,10]
[320904858,1711684240665,-738.37672058,0.00040828,10]
[320904859,1711684240673,-292.21,0.00040881,2]
[320904860,1711684240682,-159.74,0.0004091,2]
[320904861,1711684240691,-1500.0,0.00041096,120]
[320904862,1711684240700,-183.0,0.00041096,2]
[320904863,1711684240709,-3015.23045274,0.00041419,2]
[320904864,1711684240719,-12913.74505937,0.00041429,2]
[320904865,1711684240728,-300.0,0.000419,15]
[320904866,1711684240737,-159.74,0.00041949,2]
[320904867,1711684240746,-290.4,0.00041999,31]
[320904868,1711684240755,-8708.89995415,0.00042,2]
[320904869,1711684240767,-8000.0,0.00042,2]
[320904870,1711684240776,-207.18722966,0.00042,2]
[320904871,1711684240785,-207.18722966,0.00042,2]
[320904872,1711684240794,-207.18722966,0.00042,2]
[320904873,1711684240803,-207.18722966,0.00042,2]
[320904874,1711684240812,-207.18722966,0.00042,2]
[320904875,1711684240821,-207.18722966,0.00042,2]
[320904876,1711684240830,-207.18722966,0.00042,2]
[320904877,1711684240839,-207.18722966,0.00042,2]
[320904878,1711684240849,-207.18722966,0.00042,2]
[320904879,1711684240858,-207.18722966,0.00042,2]
[320904880,1711684240867,-207.18722966,0.00042,2]
[320904881,1711684240877,-207.18722966,0.00042,2]
[320904882,1711684240886,-207.18722966,0.00042,2]
[320904883,1711684240895,-207.18722966,0.00042,2]
[320904884,1711684240904,-207.18722966,0.00042,2]
[320904885,1711684240914,-207.18722966,0.00042,2]
[320904886,1711684240923,-207.18722966,0.00042,2]
[320904887,1711684240932,-207.18722966,0.00042,2]
[320904888,1711684240942,-207.18722966,0.00042,2]
[320904889,1711684240951,-207.18722966,0.00042,2]
[320904890,1711684240960,-207.18722966,0.00042,2]
[320904891,1711684240969,-207.18722966,0.00042,2]
[320904892,1711684240979,-207.18722966,0.00042,2]
[320904893,1711684240988,-207.18722966,0.00042,2]
[320904894,1711684240997,-207.18722966,0.00042,2]
[320904895,1711684241009,-207.18722966,0.00042,2]
[320904896,1711684241018,-207.18722966,0.00042,2]
[320904897,1711684241028,-207.18722966,0.00042,2]
[320904898,1711684241036,-207.18722966,0.00042,2]
[320904899,1711684241046,-207.18722966,0.00042,2]
[320904900,1711684241055,-207.18722966,0.00042,2]
[320904901,1711684241064,-207.18722966,0.00042,2]
[320904902,1711684241074,-207.18722966,0.00042,2]
[320904903,1711684241083,-207.18722966,0.00042,2]
[320904904,1711684241092,-207.18722966,0.00042,2]
[320904905,1711684241102,-207.18722966,0.00042,2]
[320904906,1711684241111,-207.18722966,0.00042,2]
[320904907,1711684241121,-207.18722966,0.00042,2]
[320904908,1711684241132,-207.18722966,0.00042,2]
[320904909,1711684241142,-207.18722966,0.00042,2]
[320904910,1711684241151,-207.18722966,0.00042,2]
[320904911,1711684241160,-207.18722966,0.00042,2]
[320904912,1711684241171,-207.18722966,0.00042,2]
[320904913,1711684241180,-207.18722966,0.00042,2]
[320904914,1711684241189,-207.18722966,0.00042,2]
[320904915,1711684241198,-207.18722966,0.00042,2]
[320904916,1711684241207,-207.18722966,0.00042,2]
[320904917,1711684241218,-207.18722966,0.00042,2]
[320904918,1711684241227,-207.18722966,0.00042,2]
[320904919,1711684241238,-207.18722966,0.00042,2]
[320904920,1711684241247,-207.18722966,0.00042,2]
[320904921,1711684241256,-207.18722966,0.00042,2]
[320904922,1711684241266,-207.18722966,0.00042,2]
[320904923,1711684241275,-207.18722966,0.00042,2]
[320904924,1711684241285,-207.18722966,0.00042,2]
[320904925,1711684241294,-207.18722966,0.00042,2]
[320904926,1711684241303,-207.18722966,0.00042,2]
[320904927,1711684241313,-207.18722966,0.00042,2]
[320904928,1711684241322,-207.18722966,0.00042,2]
[320904929,1711684241331,-207.18722966,0.00042,2]
[320904930,1711684241340,-207.18722966,0.00042,2]
[320904931,1711684241350,-207.18722966,0.00042,2]
[320904932,1711684241359,-207.18722966,0.00042,2]
[320904933,1711684241368,-207.18722966,0.00042,2]
[320904934,1711684241377,-207.18722966,0.00042,2]
[320904935,1711684241387,-207.18722966,0.00042,2]
[320904936,1711684241396,-207.18722966,0.00042,2]
[320904937,1711684241406,-207.18722966,0.00042,2]
[320904938,1711684241415,-207.18722966,0.00042,2]
[320904939,1711684241424,-207.18722966,0.00042,2]
[320904940,1711684241434,-207.18722966,0.00042,2]
[320904941,1711684241443,-207.18722966,0.00042,2]
[320904942,1711684241452,-207.18722966,0.00042,2]
[320904943,1711684241461,-207.18722966,0.00042,2]
[320904944,1711684241470,-207.18722966,0.00042,2]
[320904945,1711684241479,-207.18722966,0.00042,2]
[320904946,1711684241489,-207.18722966,0.00042,2]
[320904947,1711684241498,-207.18722966,0.00042,2]
[320904948,1711684241509,-207.18722966,0.00042,2]
[320904949,1711684241518,-207.18722966,0.00042,2]
[320904950,1711684241527,-207.18722966,0.00042,2]
[320904951,1711684241536,-207.18722966,0.00042,2]
[320904952,1711684241545,-207.18722966,0.00042,2]
[320904953,1711684241554,-207.18722966,0.00042,2]
[320904954,1711684241563,-207.18722966,0.00042,2]
[320904955,1711684241572,-207.18722966,0.00042,2]
[320904956,1711684241581,-207.18722966,0.00042,2]
[320904957,1711684241591,-207.18722966,0.00042,2]
[320904958,1711684241600,-207.18722966,0.00042,2]
[320904959,1711684241609,-207.18722966,0.00042,2]
[320904960,1711684241619,-207.18722966,0.00042,2]
[320904961,1711684241628,-207.18722966,0.00042,2]
[320904962,1711684241637,-207.18722966,0.00042,2]
[320904963,1711684241646,-207.18722966,0.00042,2]
[320904964,1711684241656,-207.18722966,0.00042,2]
[320904965,1711684241665,-207.18722966,0.00042,2]
[320904966,1711684241674,-374.65,0.00042126,2]
[320904967,1711684241683,-949.86,0.00042238,2]
[320904968,1711684241692,-322.08,0.00042319,15]
[320904969,1711684241702,-1869.07999907,0.000426,120]
[320904970,1711684241711,-3015.23045274,0.00043066,2]
[320904971,1711684241720,-12913.74505937,0.00043087,2]
[320904972,1711684241729,-2515.00302676,0.00043121,60]
[320904973,1711684241738,-191.91,0.00043271,2]
[320904974,1711684241747,-3242.0,0.00043985,2]
[320904975,1711684241758,-644.8950171,0.00044,45]
[320904976,1711684241767,-374.65,0.0004439,2]
[320904977,1711684241776,-200.0,0.0004445,2]
[320904978,1711684241785,-3015.23045274,0.00044714,2]
[320904979,1711684241794,-12913.74505937,0.00044745,2]
[320904980,1711684241803,-1000.0,0.00044799,2]
[320904981,1711684241812,-700.0,0.00044893,30]
[320904982,1711684241821,-949.86,0.00044978,2]
[320904983,1711684241830,-518.1,0.00044986,2]
[320904984,1711684241839,-416.02,0.00044986,2]
[320904985,1711684241848,-172.83,0.00044986,2]
[320904986,1711684241858,-164.37,0.00044986,2]
[320904987,1711684241866,-416.02,0.00044986,2]
[320904988,1711684241876,-161.51,0.00044986,2]
[320904989,1711684241885,-416.02,0.00044986,2]
[320904990,1711684241894,-547.29,0.00044986,2]
[320904991,1711684241903,-161.51,0.00044986,2]
[320904992,1711684241912,-518.1,0.00044986,2]
[320904993,1711684241921,-416.02,0.00044986,2]
[320904994,1711684241931,-518.1,0.00044986,2]
[320904995,1711684242118,-161.51,0.00044986,2]
[320904996,1711684242128,-518.1,0.00044986,2]
[320904997,1711684242139,-416.02,0.00044986,2]
[320904998,1711684242148,-322.77607605,0.00045,45]
[320904999,1711684242158,-322.08,0.00045059,15]
[320905000,1711684242167,-700.0,0.00045167,30]
[320905001,1711684242178,-700.0,0.00045441,30]
[320905002,1711684242187,-700.0,0.00045715,30]
[320905003,1711684242197,-518.1,0.00045808,2]
[320905004,1711684242206,-416.02,0.00045808,2]
[320905005,1711684242216,-233.15,0.00045808,2]
[320905006,1711684242225,-518.1,0.00045808,2]
[320905007,1711684242234,-700.0,0.00045989,30]
[320905008,1711684242244,-552.759,0.00046235,2]